Cogmind - Beta 15 @@@ ROGUE MODE // 2025.05.23 @ 16:12:13 // Winter2019/RPGLIKE Player: ASS BUSTER Result: Destroyed by P-70 Sage with Tesla Rifle Performance ------------- Evolutions (6) 3000 Regions Visited (13) 2600 Robots Destroyed (330) 1650 Value Destroyed (16086) 16086 Prototype IDs (216) 4320 Alien Tech Used (0) 0 Bonus (12653) 12653 TOTAL SCORE: 40309 Bonus ------- Triggered High Security 500 High Alert Combat Kills 6588 Follower Combat Kills 1301 Registered with UFD 300 Met Data Miner 300 Used Data Conduit 3000 Built Enhanced Grunts 300 Met R17 at Cetus 500 Pursued by Intercept 1000 Friendly Fire -1136 Cogmind --------- Core Integrity 0/2200 Matter 16/300 Energy 650/650 System Corruption 7% Temperature Warm (157) Movement Rolling (125) Ox3 Location -4/Armory Parts ------- > --- POWER (1) -------- Quantum Reactor > --- PROPULSION (2) --- Wheel > --- UTILITY (6) ------ Advanced Transmission Jammer Improved Medium Armor Plating Advanced Focal Shield Advanced Thermal Shield Experimental Thermal Shield > --- WEAPON (5) ------- Neutron Cannon Neutron Cannon Hypervelocity Railgun Enhanced Hardcell Cannon Enhanced Hardcell Cannon > --- INVENTORY (0) ---- (None) Peak State ------------ > --- POWER ------------ Quantum Reactor > --- PROPULSION ------- Impulse Thruster Array > --- UTILITY ---------- Advanced Transmission Jammer Centrium Medium Armor Plating Advanced Focal Shield Advanced Thermal Shield Experimental Thermal Shield Improved Remote Shield > --- WEAPON ----------- Neutron Cannon Neutron Cannon Hypervelocity Railgun Enhanced Hardcell Cannon Enhanced Hardcell Cannon > --- INVENTORY -------- (None) [Rating: 111] Favorites ----------- Power Ion Engine Engine Ion Engine Power Core Micro Nuclear Core Reactor Light Antimatter Reactor Propulsion Wheel Leg Enhanced Flexi-carbon Leg Wheel Wheel Hover Unit Gravmag System Flight Unit Impulse Thruster Array Utility Layered Medium Armor Plating Device Experimental Thermal Shield Processor Advanced Target Analyzer Hackware Hacking Suite Protection Layered Medium Armor Plating Weapon Neutron Cannon Energy Gun Small Laser Energy Cannon Neutron Cannon Ballistic Gun Assault Rifle Ballistic Cannon Battle Cannon Launcher Rocket Launcher Special Weapon Junk Cannon Build | -11 -10 -10 -8 -8 -6 -6 -6 -5 -5 -5 -5 -4 -4 ------- Run | Yrd Mat Sub Rec Scr Fac Low Dat Pro Fac Ext Cet Fac Arm Slots Evolved 10 | 4 . . . 1 3 1 . 1 . . . . . Power . | . . . . . . . . . . . . . . Propulsion 1 | . . . . . 1 . . . . . . . . Utility 5 | 1 . . . . 2 1 . 1 . . . . . Weapon 4 | 3 . . . 1 . . . . . . . . . Parts Attached 103 | 8 8 4 4 5 25 . 8 3 4 10 7 8 9 Power 4 | 1 . . . . 2 . . . . . 1 . . Engine 1 | 1 . . . . . . . . . . . . . Core 1 | . . . . . 1 . . . . . . . . Reactor 2 | . . . . . 1 . . . . . 1 . . Propulsion 15 | 1 . . . . 10 . 2 . . 1 . . 1 Treads . | . . . . . . . . . . . . . . Leg 2 | . . . . . . . 2 . . . . . . Wheel 6 | 1 . . . . 4 . . . . 1 . . . Hover 6 | . . . . . 6 . . . . . . . . Flight 1 | . . . . . . . . . . . . . 1 Utility 40 | 2 2 1 2 2 7 . 4 2 3 6 3 4 2 Device 20 | 2 1 . . 1 3 . 2 2 3 1 . 4 1 Storage . | . . . . . . . . . . . . . . Processor 2 | . . . . . . . . . . 2 . . . Hackware 1 | . . . . . 1 . . . . . . . . Protection 17 | . 1 1 2 1 3 . 2 . . 3 3 . 1 Artifact . | . . . . . . . . . . . . . . Weapon 44 | 4 6 3 2 3 6 . 2 1 1 3 3 4 6 Energy Gun 2 | 1 1 . . . . . . . . . . . . Energy Cannon 12 | . . 2 . . 5 . 2 . . 1 2 . . Ballistic Gun 10 | 2 1 . . 1 . . . 1 1 1 1 . 2 Ballistic Cannon 13 | . . 1 1 1 1 . . . . 1 . 4 4 Launcher 3 | . 2 . 1 . . . . . . . . . . Special Weapon 4 | 1 2 . . 1 . . . . . . . . . Impact Weapon . | . . . . . . . . . . . . . . Slashing Weapon . | . . . . . . . . . . . . . . Piercing Weapon . | . . . . . . . . . . . . . . Special Melee Weapon . | . . . . . . . . . . . . . . Unidentified Prototypes 1 | . . . . 1 . . . . . . . . . Parts Lost 7 | . . . . . 3 . 1 1 . . . 1 1 Power . | . . . . . . . . . . . . . . Propulsion 2 | . . . . . 1 . . . . . . 1 . Utility 3 | . . . . . 1 . 1 . . . . . 1 Weapon 2 | . . . . . 1 . . 1 . . . . . Highest Loss Streak 2 | . . . . . 2 . 1 1 . . . 1 1 To Critical Strikes . | . . . . . . . . . . . . . . Average Backups . | . . . . . . . . . . . . . . Power . | . . . . . . . . . . . . . . Propulsion . | . . . . . . . . . . . . . . Utility . | . . . . . . . . . . . . . . Weapon . | . . . . . . . . . . . . . . Tool/Special . | . . . . . . . . . . . . . . Unused Backups . | . . . . . . . . . . . . . . Power . | . . . . . . . . . . . . . . Propulsion . | . . . . . . . . . . . . . . Utility . | . . . . . . . . . . . . . . Weapon . | . . . . . . . . . . . . . . Tool/Special . | . . . . . . . . . . . . . . Average Slot Usage (%) 92 | . 93 99 100 97 72 87 85 91 90 96 100 98 87 Engine 5 | . 12 12 12 11 4 . . . . . . . . Reactor 3 | . . . . . 1 7 7 7 7 7 7 7 7 Wheel 9 | . 12 12 12 11 2 7 6 7 7 11 14 13 6 Device 17 | . 19 13 12 11 7 7 12 23 26 25 21 28 30 Hackware 1 | . . . . . 7 7 4 . . . . . . Protection 11 | . . 10 12 11 4 15 13 15 14 14 21 13 6 Energy Gun 1 | . 12 1 . . . . . . . . . . . Energy Cannon 15 | . . 13 16 9 6 23 23 23 20 21 21 20 14 Ballistic Gun 5 | . 24 12 . . . . . 2 7 7 7 7 6 Ballistic Cannon 11 | . . 8 20 24 16 15 15 11 7 7 7 7 13 Launcher 4 | . 6 12 12 11 5 . . . . . . . . Special Weapon 1 | . 5 . . 1 5 . . . . . . . . Peak Build Rating 111 | 10 12 16 17 29 54 47 79 69 75 78 86 92 111 Average Rating 46 | 4 10 14 16 20 36 47 54 67 72 75 81 88 90 On Entrance 45 | . 10 12 16 17 29 47 47 68 67 73 75 86 85 Naked Turns . | . . . . . . . . . . . . . . Heaviest Build 97 | 12 15 32 37 43 69 69 84 84 84 88 97 97 95 Greatest Support 56 | 10 10 10 10 25 56 25 43 25 25 35 35 35 31 Greatest Overweight (x) 5 | 1 1 3 3 4 2 2 4 3 3 3 2 3 5 Average Overweight (x) 2 | . . 2 2 3 1 2 2 2 2 2 2 2 2 Largest Inventory Capacity . | . . . . . . . . . . . . . . Average Capacity . | . . . . . . . . . . . . . . Most Carried . | . . . . . . . . . . . . . . Average Carried . | . . . . . . . . . . . . . . Final Capacity . | . . . . . . . . . . . . . . Final Carried . | . . . . . . . . . . . . . . Class Distribution -------------------- 31% | Gunner 27% | Hacker-Tank 21% | Scavenger-Tank 12% | Hacker-Gunner 6% | Tank Dominant Class ---------------- Gunner | -10/Materials Tank | -10/Subcaves Gunner | -8/Recycling Gunner | -8/Scraptown Hacker-Gunner | -6/Factory Hacker-Tank | -6/Lower Caves Hacker-Tank | -6/Data Miner Scavenger-Tank | -5/Proximity Caves Scavenger-Tank | -5/Factory Hacker-Tank | -5/Extension Scavenger-Tank | -5/Cetus Hacker-Tank | -4/Factory Hacker-Tank | -4/Armory Resources | -11 -10 -10 -8 -8 -6 -6 -6 -5 -5 -5 -5 -4 -4 ----------- Run | Yrd Mat Sub Rec Scr Fac Low Dat Pro Fac Ext Cet Fac Arm Matter Collected 8997 | 247 748 460 481 67 1981 223 222 477 398 1198 421 955 1119 Remotely . | . . . . . . . . . . . . . . Salvage Created 12663 | 195 579 383 732 . 2276 263 112 905 391 2754 397 2176 1500 Parts 569 | 17 45 36 26 . 96 8 11 36 33 95 20 96 50 Haulers Intercepted 2 | . 1 . . . . . . . . 1 . . . Recyclers Shooed 9 | . . . 2 . 6 . . . . 1 . . . Parts Field Recycled . | . . . . . . . . . . . . . . Retrieved Matter . | . . . . . . . . . . . . . . Parts Self-Destructed 68 | . . 20 . . . 8 . 40 . . . . . Prevented 3 | . . . . . . 3 . . . . . . . Kills | -11 -10 -10 -8 -8 -6 -6 -6 -5 -5 -5 -5 -4 -4 ------- Run | Yrd Mat Sub Rec Scr Fac Low Dat Pro Fac Ext Cet Fac Arm Combat Hostiles Destroyed 241 | . 17 19 3 . 38 7 4 23 8 36 10 41 35 Guns 28 | . 9 3 . . . . . . . 4 1 5 6 Cannons 177 | . 1 11 3 . 31 5 2 22 7 29 8 29 29 AOE 25 | . 7 4 . . 4 . . 1 1 2 . 6 . Classes Destroyed 21 | 3 5 2 1 . 5 . . 1 . 1 . 2 1 Worker 16 | 2 2 . . . 7 . . . 5 . . . . Builder 15 | . . . 3 . 8 . . . 1 2 . 1 . Tunneler 6 | 5 1 . . . . . . . . . . . . Hauler 2 | . 1 . . . . . . . . 1 . . . Recycler 24 | 1 3 . 8 . 6 . . . . 5 . 1 . Mechanic 3 | . . . . . 1 . . . . 1 . . 1 Operator 5 | . 3 . . . . . . . 1 . . 1 . Drone 2 | . . . . . . . . 2 . . . . . Watcher 17 | . 3 . . . 5 . . . 1 2 1 4 1 Swarmer 34 | . 11 7 . . . 1 . 1 . . . 6 8 Saboteur 5 | . . . . . . . . . . . . 3 2 Grunt 78 | . 6 . . . 17 2 . 15 . 9 4 18 7 Brawler 12 | . . . . . 4 1 . 1 . 3 . 1 2 Duelist 10 | . . . . . 2 2 . . . . . 3 3 Sentry 21 | . . 1 3 . 3 1 . 1 2 5 . 5 . Demolisher 3 | . . . . . . . . . . . . . 3 Specialist 7 | . . . . . . . . . . . . 1 6 Hunter 15 | . . . . . 4 . . 2 2 5 . . 2 Programmer 17 | . . . . . 8 . . 1 2 . . 4 2 Behemoth 2 | . . . . . . . . . . 2 . . . Cetus Guard 6 | . . . . . . . . . . . 6 . . Enhanced Grunt 4 | . . . . . . . 4 . . . . . . Tracker 1 | . . . . . . . . . 1 . . . . Combat Programmer 1 | . . . . . . . . . 1 . . . . Subdweller 11 | . . 11 . . . . . . . . . . . Thug 4 | . . . . . . . . . . 4 . . . Savage 3 | . . . . . . . . . . 3 . . . Butcher 2 | . . . . . . . . . . 2 . . . Guerrilla 3 | . . . . . . . . . . 3 . . . Best Kill Streak 13 | 4 7 3 3 . 10 6 3 4 3 8 4 10 13 Combat Bots Only 13 | . 3 3 1 . 6 6 3 4 2 7 4 6 13 Max Kills in Single Turn 3 | 1 3 2 2 . 3 1 1 2 2 3 1 2 3 Gunslinging . | . . . . . . . . . . . . . . Exploded 2 | . 2 2 . . 1 . . 1 1 1 . 2 . Melee . | . . . . . . . . . . . . . . Uniques/NPCs Destroyed 1 | . . . . . . . . . . . 1 . . Revision 17 (-5/Cetus) Combat | -11 -10 -10 -8 -8 -6 -6 -6 -5 -5 -5 -5 -4 -4 -------- Run | Yrd Mat Sub Rec Scr Fac Low Dat Pro Fac Ext Cet Fac Arm Hostile Shots Fired 1399 | . 65 38 12 75 223 8 37 102 53 83 94 414 195 Missed 463 | . 17 15 3 25 57 3 13 35 14 31 33 144 73 Hits 936 | . 48 23 9 50 166 5 24 67 39 52 61 270 122 Melee 13 | . . . . 2 6 . . . . . . 1 4 Projectile 923 | . 48 23 9 48 160 5 24 67 39 52 61 269 118 AOE 7 | . . 1 . . . . . . . . . . 6 Critical Strikes 55 | . . 1 . 4 4 . . 1 3 4 11 20 7 Part Disruptions 4 | . . . . . . . 1 . . . . 1 2 Damage Taken 12765 | . 540 390 141 739 1821 64 679 658 678 720 893 3554 1888 Core 8997 | . 428 277 105 513 1417 38 463 443 502 454 580 2454 1323 Absorbed by Shields 3092 | . . . . 109 706 20 206 212 235 282 328 864 130 Redirected to Core 7732 | . 342 241 90 472 1285 38 378 347 408 396 498 2084 1153 Ignored by Resistances 4176 | . . 46 14 78 252 11 231 307 145 371 377 1720 624 Core Remaining (%) 73 | 100 . . . 42 . . . 51 . . 100 . . Volleys Fired 671 | 29 94 37 48 1 124 15 11 31 40 79 31 74 57 Largest 5 | 2 4 4 2 2 5 5 5 5 5 5 5 5 5 Hottest 358 | 60 180 223 113 77 358 358 358 358 347 350 352 356 336 Shots Fired 2512 | 56 350 108 64 2 370 65 45 145 198 353 139 344 273 Gun 653 | 56 281 39 . . . . . . 39 78 31 72 57 Cannon 1728 | . . 52 52 2 337 65 45 145 159 275 108 272 216 Launcher 67 | . 27 17 12 . 11 . . . . . . . . Special 64 | . 42 . . . 22 . . . . . . . . Kinetic 1291 | 29 188 56 50 2 247 30 17 56 80 152 62 155 167 Thermal 1132 | 27 135 35 2 . 90 35 28 89 118 201 77 189 106 Explosive 67 | . 27 17 12 . 11 . . . . . . . . Electromagnetic . | . . . . . . . . . . . . . . Impact 22 | . . . . . 22 . . . . . . . . Robot Hit Streak 37 | 5 7 24 23 . 20 15 15 17 37 25 23 21 29 Robot Miss Streak 7 | 1 4 4 1 . 4 2 7 5 4 2 1 3 5 Penetration Max 2 | . . . . . . . . . 1 1 1 1 2 Secondary Targets 1 | . 1 . . . . . . . . . . . . Max Gunslinging Chain 1 | . 1 . . . . . . . . . . . . Shots Hit Robots 1062 | 30 60 47 25 . 189 19 32 74 47 172 77 148 142 Core Hits 589 | 11 43 23 18 . 133 12 21 60 33 77 26 72 60 Critical Kills 15 | . . 1 . . 1 2 2 . 1 2 1 1 4 Critical Parts Destroyed 28 | . . . . . 2 . . . . 4 1 8 13 Critical Strikes 76 | . . 3 2 . 9 2 3 . 1 10 4 15 27 Meltdown 9 | . . 1 . . 1 2 2 . . 2 1 . . Destroy 34 | . . 1 . . . . . . 1 4 1 10 17 Blast 31 | . . 1 2 . 6 . 1 . . 4 2 5 10 Smash 2 | . . . . . 2 . . . . . . . . Melee Attacks . | . . . . . . . . . . . . . . Impact . | . . . . . . . . . . . . . . Slashing . | . . . . . . . . . . . . . . Piercing . | . . . . . . . . . . . . . . Sneak Attacks . | . . . . . . . . . . . . . . Combat Hostiles . | . . . . . . . . . . . . . . Follow-up Attacks . | . . . . . . . . . . . . . . Damage Inflicted 47820 | 297 1285 1355 796 4 8310 650 894 3382 2337 9049 3416 9210 6835 Guns 5934 | 297 643 230 . . . . . . 378 1571 788 1559 468 Cannons 34893 | . . 573 497 . 6068 650 894 3183 1564 6622 2628 5912 6302 Explosions 6114 | . 551 552 299 . 1503 . . 199 395 856 . 1694 65 Melee . | . . . . . . . . . . . . . . Ramming 69 | . 19 . . 4 1 . . . . . . 45 . Kinetic 22335 | 127 457 541 469 . 3986 303 477 1232 811 3819 1753 3779 4581 Thermal 22307 | 170 258 262 28 . 2690 347 417 2150 1495 5230 1663 5343 2254 Explosive 2319 | . 530 552 299 . 895 . . . . . . 43 . Electromagnetic 52 | . 21 . . . . . . . 31 . . . . Impact 738 | . . . . . 738 . . . . . . . . Slashing . | . . . . . . . . . . . . . . Piercing . | . . . . . . . . . . . . . . Highest Corruption 7 | . . . . 1 4 4 4 5 5 7 . 4 7 Average Corruption 4 | . . . . 1 2 4 4 4 3 5 . 2 4 Corruption Purged 7 | . . . . . . . . . . 7 . . . Corruption Blocked . | . . . . . . . . . . . . . . Effects 194 | . . . . . 18 25 9 46 15 42 . 22 17 Message Errors 44 | . . . . . 4 3 2 15 3 8 . 5 4 Matter Fused 41 | . . . . . 2 5 2 12 2 15 . 1 2 Heat Flow Errors 22 | . . . . . 1 3 1 6 2 5 . 3 1 Energy Discharges 19 | . . . . . 2 7 . 2 1 5 . 1 1 Parts Rejected 3 | . . . . . . . . . . . . 3 . Data Loss (minor) 29 | . . . . . 5 3 1 8 3 5 . 2 2 Data Loss (major) 12 | . . . . . 3 2 . . 1 . . 3 3 Misfires 10 | . . . . . . 2 . 1 1 4 . 1 1 Alerts 2 | . . . . . . . . 2 . . . . . Weapon Failures 12 | . . . . . 1 . 3 . 2 . . 3 3 Overload Shots . | . . . . . . . . . . . . . . Overflow Damage 1999 | . . 48 38 . 573 . 17 119 231 209 132 388 244 Projectiles 1471 | . . 8 17 . 365 . 17 119 146 152 132 271 244 Explosions 528 | . . 40 21 . 208 . . . 85 57 . 117 . Melee . | . . . . . . . . . . . . . . Knockbacks 146 | . . . 4 . 37 2 8 14 12 10 3 19 37 Impact 3 | . . . . . 3 . . . . . . . . Kinetic 127 | . . . 4 . 30 2 7 13 12 9 3 17 30 Secondary 16 | . . . . . 4 . 1 1 . 1 . 2 7 Self-Inflicted Damage 704 | . 99 . 22 2 295 . . . . . . 237 49 Shots 14 | . 3 . 1 . 5 . . . . . . 4 1 Rammed 9 | . 2 . . 1 1 . . . . . . 5 . Targets Rammed 9 | . 2 . . 1 1 . . . . . . 5 . Kicked . | . . . . . . . . . . . . . . Crushed . | . . . . . . . . . . . . . . Highest Temperature 564 | 40 376 261 132 21 564 342 369 501 342 312 336 361 327 Average Temperature 98 | 24 69 53 26 11 103 109 194 191 101 99 134 89 102 Received Heat Transfer 2528 | . 48 60 36 86 321 19 . 238 24 269 102 995 330 Effects 32 | . 2 . . . 14 . . 6 5 1 . 4 . Shutdowns 4 | . . . . . 3 . . 1 . . . . . Energy Bleed 6 | . 1 . . . 1 . . 2 1 . . 1 . Interference 15 | . . . . . 6 . . 3 3 . . 3 . Matter Decay 3 | . . . . . 2 . . . . 1 . . . Short Circuit 2 | . . . . . 1 . . . 1 . . . . Damage (minor) 2 | . 1 . . . 1 . . . . . . . . Siege Activations . | . . . . . . . . . . . . . . Martial Activations . | . . . . . . . . . . . . . . Shielding Activations . | . . . . . . . . . . . . . . Robots Disrupted . | . . . . . . . . . . . . . . Combat Hostiles . | . . . . . . . . . . . . . . Robots Corrupted 2 | . . . . . 1 . . . . . . 1 . Combat Hostiles 2 | . . . . . 1 . . . . . . 1 . Parts Fried 2 | . . . . . . . . . . . . 2 . Impact Corruptions 8 | . . . . . 7 . . . . . . 1 . Robots Melted 10 | . . 1 . . 2 2 2 . . 2 1 . . Combat Hostiles 9 | . . 1 . . 2 2 2 . . 1 1 . . Parts Melted 17 | . 1 5 . . 3 . 2 . . 4 . 2 . Heat Transferred 11866 | 375 575 358 37 . 3200 500 850 1100 800 2417 629 975 50 Parts Sabotaged 3 | . . . . . 3 . . . . . . . . Parts Stolen . | . . . . . . . . . . . . . . Parts Stripped . | . . . . . . . . . . . . . . Power Chain Reactions 13 | . . . . . . . . 2 1 5 . 4 1 Alert | -11 -10 -10 -8 -8 -6 -6 -6 -5 -5 -5 -5 -4 -4 ------- Run | Yrd Mat Sub Rec Scr Fac Low Dat Pro Fac Ext Cet Fac Arm Maximum Alert Level 5 | . 2 . 1 . 4 . . . 3 5 3 5 5 Low Security (%) 25 | 100 58 . 80 . 4 . . . . 7 . . . Level 1 14 | . 39 . 19 . 13 . . . . 23 . . . Level 2 19 | . 2 . . . 35 . . . 72 25 . 5 . Level 3 19 | . . . . . 36 . . . 27 7 100 16 . Level 4 10 | . . . . . 10 . . . . 32 . 22 23 Level 5 4 | . . . . . . . . . . 3 . 3 76 High Security 5 | . . . . . . . . . . . . 52 . Max Security . | . . . . . . . . . . . . . . Peak Influence 2927 | 10 423 . 271 . 1507 . . . 845 1653 1073 2927 2184 Initial 1433 | . . . 80 . . . . . 481 388 920 587 1433 Average 702 | 2 165 . 133 . 711 . . . 617 780 886 1716 1739 Influence Increases 13394 | 40 1118 290 556 . 2193 140 . 490 1553 2254 583 3142 1035 Destroy 0b10 Robot/C 5100 | . 340 160 60 . 760 140 . 420 160 1060 320 980 700 Destroy 0b10 Robot/NC 470 | 40 65 . 60 . 135 . . 10 40 60 10 40 10 Destroy Leader 768 | . 68 10 . . 210 . . 60 62 106 20 150 82 Allied During Kill 820 | . . . . . . . . . . 405 150 265 . Trap Triggered on 0b10 10 | . . . . . . . . . . 10 . . . Successful Hack 67 | . 5 . . . 16 . . . 18 20 8 . . Disable Machine 2970 | . 465 . 345 . 720 . . . 405 195 15 705 120 Destroy Structure 2109 | . 175 . 91 . 247 . . . 418 338 60 672 108 Advance Influence 450 | . . . . . . . . . 450 . . . . Partial Spotted 15 | . . . . . . . . . . 15 . . . Lose Combat Pursuer 615 | . . 120 . . 105 . . . . 45 . 330 15 Influence Decreases 11214 | 40 701 539 710 14 688 998 647 440 809 1404 1178 1264 1782 Entered New Map 4613 | . . 201 88 14 . 558 647 . 19 406 724 462 1494 Time Decay 5121 | 40 551 338 622 . 658 440 . 430 490 598 374 302 278 Lost Part 60 | . . . . . 30 . . 10 . . . 10 10 Lost Ally 220 | . . . . . . . . . . 100 80 40 . Purge Threat 1200 | . 150 . . . . . . . 300 300 . 450 . Squads Dispatched 58 | . 3 . . . 13 . . 1 5 2 . 28 6 Investigation 6 | . 2 . . . 1 . . 1 1 . . 1 . Extermination 8 | . . . . . 6 . . . . . . 1 1 Reinforcement 6 | . 1 . . . 2 . . . 1 . . 1 1 Assault 34 | . . . . . 3 . . . 1 2 . 24 4 Garrison 1 | . . . . . 1 . . . . . . . . Intercept 3 | . . . . . . . . . 2 . . 1 . Searches Triggered . | . . . . . . . . . . . . . . Construction Impeded 4 | . . . . . 2 . . . 1 . . 1 . Haulers Reinforced . | . . . . . . . . . . . . . . Active Scanning Responses . | . . . . . . . . . . . . . . Cargo Convoy Interrupts . | . . . . . . . . . . . . . . Stealth | -11 -10 -10 -8 -8 -6 -6 -6 -5 -5 -5 -5 -4 -4 --------- Run | Yrd Mat Sub Rec Scr Fac Low Dat Pro Fac Ext Cet Fac Arm Distress Signals 9 | . . . . . 3 . . . . 1 2 3 . Communications Jammed 81 | . . . . . . . . . . . . 75 6 Distress Signals 81 | . . . . . . . . . . . . 75 6 Times Spotted 365 | . 26 29 3 14 61 6 6 26 10 44 16 79 45 Peak Tracking Total 20 | . 5 5 1 20 8 5 4 7 2 7 5 19 9 Tactical Retreats 21 | . . 3 . . 4 . . . . 6 . 7 1 Traps | -11 -10 -10 -8 -8 -6 -6 -6 -5 -5 -5 -5 -4 -4 ------- Run | Yrd Mat Sub Rec Scr Fac Low Dat Pro Fac Ext Cet Fac Arm Traps Triggered 11 | . 1 . . . 3 . . . 3 1 . 2 1 Indirectly . | . . . . . . . . . . . . . . Trap Hack Attempts . | . . . . . . . . . . . . . . Triggered . | . . . . . . . . . . . . . . Disarmed . | . . . . . . . . . . . . . . Reprogrammed 3 | . . . . . . . . . . 3 . . . Reused 1 | . . . . . . . . . . 1 . . . Traps Extracted . | . . . . . . . . . . . . . . Installed . | . . . . . . . . . . . . . . Triggered 1 | . . . . . . . . . . 1 . . . Machines | -11 -10 -10 -8 -8 -6 -6 -6 -5 -5 -5 -5 -4 -4 ---------- Run | Yrd Mat Sub Rec Scr Fac Low Dat Pro Fac Ext Cet Fac Arm Machines Disabled 206 | . 31 . 23 . 48 1 . 1 27 15 2 50 8 Max in Single Turn 15 | . 2 . 1 . 7 1 . 1 4 2 1 15 2 Machines Repaired . | . . . . . . . . . . . . . . Machines Dismantled . | . . . . . . . . . . . . . . Machines Sabotaged . | . . . . . . . . . . . . . . Overloaded Fab Kills . | . . . . . . . . . . . . . . Hacking | -11 -10 -10 -8 -8 -6 -6 -6 -5 -5 -5 -5 -4 -4 --------- Run | Yrd Mat Sub Rec Scr Fac Low Dat Pro Fac Ext Cet Fac Arm Machines Accessed 53 | . 5 1 6 7 3 . 4 1 5 16 4 1 . Terminals 40 | . 5 . 5 . 3 . . 1 5 16 4 1 . Fabricators . | . . . . . . . . . . . . . . Repair Stations . | . . . . . . . . . . . . . . Recycling Units 1 | . . . 1 . . . . . . . . . . Scanalyzers . | . . . . . . . . . . . . . . Garrison Access . | . . . . . . . . . . . . . . Total Hacks 193 | . 11 4 13 42 8 . 31 7 10 50 13 4 . Successful 147 | . 2 4 3 42 4 . 31 7 6 36 9 3 . Failed 46 | . 9 . 10 . 4 . . . 4 14 4 1 . Catastrophic 7 | . 1 . 1 . 1 . . . 2 2 . . . Database Lockouts . | . . . . . . . . . . . . . . Manual 11 | . 1 . . . 3 . . . 2 3 2 . . Terminals 113 | . 11 . 10 . 8 . . 7 10 50 13 4 . Fabricators . | . . . . . . . . . . . . . . Repair Stations . | . . . . . . . . . . . . . . Recycling Units 3 | . . . 3 . . . . . . . . . . Scanalyzers . | . . . . . . . . . . . . . . Garrison Access . | . . . . . . . . . . . . . . Terminal Hacks 146 | . 2 4 2 42 4 . 31 7 6 36 9 3 . Record 74 | . . 4 . 36 2 . 11 7 . 6 8 . . Part Schematic 10 | . . . . . . . 10 . . . . . . Robot Schematic 8 | . . . . . . . 7 . . 1 . . . Robot Analysis 6 | . . . . 6 . . . . . . . . . Prototype ID Bank 8 | . 1 . . . 1 . 3 . 1 2 . . . Open Door 8 | . . . . . . . . . 1 6 1 . . Branch Access Points 3 | . . . . . 1 . . . 1 1 . . . Emergency Access Points 1 | . . . 1 . . . . . . . . . . Fabricator Index 1 | . . . . . . . . . . 1 . . . Scanalyzer Index 1 | . . . . . . . . . . 1 . . . Garrison Index 1 | . . . . . . . . . . 1 . . . Alert Level 2 | . . . 1 . . . . . . 1 . . . Unreport Threat 8 | . 1 . . . . . . . 2 2 . 3 . Locate Traps 4 | . . . . . . . . . . 4 . . . Reprogram Traps 2 | . . . . . . . . . . 2 . . . Dispatch Records 2 | . . . . . . . . . . 2 . . . Maintenance Status 1 | . . . . . . . . . . 1 . . . Recall Investigation 1 | . . . . . . . . . . 1 . . . Recall Reinforcements 1 | . . . . . . . . . . 1 . . . Registered Prototypes 1 | . . . . . . . . . . 1 . . . Zone Layout 3 | . . . . . . . . . 1 2 . . . Fabricator Hacks . | . . . . . . . . . . . . . . Repair Station Hacks . | . . . . . . . . . . . . . . Recycling Unit Hacks 1 | . . . 1 . . . . . . . . . . Retrieve Components 1 | . . . 1 . . . . . . . . . . Scanalyzer . | . . . . . . . . . . . . . . Garrison Access Hacks . | . . . . . . . . . . . . . . Unauthorized Hacks . | . . . . . . . . . . . . . . Terminals . | . . . . . . . . . . . . . . Fabricators . | . . . . . . . . . . . . . . Repair Stations . | . . . . . . . . . . . . . . Recycling Units . | . . . . . . . . . . . . . . Scanalyzers . | . . . . . . . . . . . . . . Garrison Access . | . . . . . . . . . . . . . . Data Cores Recovered 3 | . 1 . . . . . . . 1 . . 1 . Used 1 | . . . . . . . . . . . . 1 . Hacking Detections 27 | . 3 . 4 . 3 . . 1 3 9 3 1 . Full Trace Events 3 | . 1 . . . 1 . . 1 . . . . . Feedback Events . | . . . . . . . . . . . . . . Feedback Blocked . | . . . . . . . . . . . . . . Robot Schematics Acquired 8 | . . . . . . . 7 . . 1 . . . Robots Built . | . . . . . . . . . . . . . . Authchips . | . . . . . . . . . . . . . . Time . | . . . . . . . . . . . . . . Total Robot Build Rating . | . . . . . . . . . . . . . . Part Schematics Acquired 10 | . . . . . . . 10 . . . . . . Parts Built . | . . . . . . . . . . . . . . Authchips . | . . . . . . . . . . . . . . Time . | . . . . . . . . . . . . . . Total Part Build Rating . | . . . . . . . . . . . . . . Parts Repaired . | . . . . . . . . . . . . . . Time . | . . . . . . . . . . . . . . Parts Recycled . | . . . . . . . . . . . . . . Recycled Matter . | . . . . . . . . . . . . . . Retrieved Matter . | . . . . . . . . . . . . . . Retrieved Components 1 | . . . 1 . . . . . . . . . . Parts Scanalyzed . | . . . . . . . . . . . . . . Part Schematics Acquired . | . . . . . . . . . . . . . . Parts Damaged . | . . . . . . . . . . . . . . Bothacking | -11 -10 -10 -8 -8 -6 -6 -6 -5 -5 -5 -5 -4 -4 ------------ Run | Yrd Mat Sub Rec Scr Fac Low Dat Pro Fac Ext Cet Fac Arm Used RIF Installer . | . . . . . . . . . . . . . . Robots Hacked . | . . . . . . . . . . . . . . Non-combat . | . . . . . . . . . . . . . . Combat . | . . . . . . . . . . . . . . Robot Hacks Applied . | . . . . . . . . . . . . . . Relay Couplers Released . | . . . . . . . . . . . . . . Fabnet Peak Effective % . | . . . . . . . . . . . . . . Robots Rewired . | . . . . . . . . . . . . . . Allies Hacked . | . . . . . . . . . . . . . . Hacks Repelled . | . . . . . . . . . . . . . . Allies | -11 -10 -10 -8 -8 -6 -6 -6 -5 -5 -5 -5 -4 -4 -------- Run | Yrd Mat Sub Rec Scr Fac Low Dat Pro Fac Ext Cet Fac Arm Total Allies 12 | . . . . . . . . . . 7 5 . . Largest Group 7 | . . . . . . . . . . 7 5 2 . Highest-Rated Group 480 | . . . . . . . . . . 352 480 192 . Highest-Rated Ally 159 | . . . . . . . . . . 159 159 96 . Total Orders . | . . . . . . . . . . . . . . Ally Attacks 197 | . . . . . . . . . . 116 29 52 . Total Damage 5876 | . . . . . . . . . . 2610 1511 1755 . Kills 35 | . . . . . . . . . . 19 7 9 . Allies Corrupted 1 | . . . . . . . . . . 1 . . . Allies Melted . | . . . . . . . . . . . . . . Intel | -11 -10 -10 -8 -8 -6 -6 -6 -5 -5 -5 -5 -4 -4 ------- Run | Yrd Mat Sub Rec Scr Fac Low Dat Pro Fac Ext Cet Fac Arm Active Infowar (turns) 8011 | 51 1731 1587 2111 34 . . . . 797 613 . 477 610 Terrain 5514 | 51 1731 1587 2111 34 . . . . . . . . . Seismic 403 | 36 367 . . . . . . . . . . . . Jamming 1087 | . . . . . . . . . . . . 477 610 ECM 1410 | . . . . . . . . . 797 613 . . . Robot Analysis Total 157 | . . . . 6 . . 151 . . . . . . Derelict Logs Recovered 4 | . . . . 1 . 2 . 1 . . . . . Drone Launches . | . . . . . . . . . . . . . . Drone Recoveries . | . . . . . . . . . . . . . . Exploration | -11 -10 -10 -8 -8 -6 -6 -6 -5 -5 -5 -5 -4 -4 ------------- Run | Yrd Mat Sub Rec Scr Fac Low Dat Pro Fac Ext Cet Fac Arm Turns Passed 18822 | 194 1731 1587 2111 1555 2479 1098 282 1708 1290 1908 875 1394 610 Spaces Moved 12584 | 132 1253 1277 1587 1216 1587 709 181 1229 697 1094 570 805 247 Core 407 | 18 . . . . 386 . 1 . . . . . 2 Treads . | . . . . . . . . . . . . . . Legs 1 | . . . . . . . 1 . . . . . . Wheels 11534 | 114 1253 1277 1587 1216 561 709 179 1229 697 1094 570 805 243 Hover 640 | . . . . . 640 . . . . . . . . Flight 2 | . . . . . . . . . . . . . 2 Fastest Speed 50 | 50 80 95 110 95 56 110 110 110 110 110 110 110 110 Average Speed 116 | 78 94 111 124 126 118 110 116 123 124 115 110 112 127 Slowest Speed 300 | 95 95 125 125 140 176 110 250 125 125 125 110 125 300 Overloaded Moves . | . . . . . . . . . . . . . . Propulsion Burnouts . | . . . . . . . . . . . . . . Robots Hopped . | . . . . . . . . . . . . . . Potential Cave-ins 15 | . . . . . . . . . 2 . . 13 . Cave-ins Triggered 1 | . . . . . . . . . 1 . . . . Exploration Rate (%) 62 | 4 97 72 99 79 26 86 78 93 10 89 97 24 18 Regions Visited 13 Branch Regions 9 Pre-discovered Areas 31 | . . . . 1 . 1 28 1 . . . . . Known Exits Taken 4 | . . . . . 1 . . 1 1 1 . . . Unknown Exits Taken 9 | 1 1 1 1 1 . 1 1 . . . 1 1 . Scrap Searched 15 | . . 5 . 3 . 2 . 5 . . . . . Spaces Dug 274 | . . . . . 4 6 . . 96 43 . 121 4 Terrain Destroyed 1672 | . 181 94 102 1 266 25 1 49 262 186 17 426 62 Melee . | . . . . . . . . . . . . . . Projectile 554 | . 4 10 4 1 46 25 1 37 63 156 17 137 53 AOE 1118 | . 177 84 98 . 220 . . 12 199 30 . 289 9 Terrain Rammed . | . . . . . . . . . . . . . . Walls Destroyed . | . . . . . . . . . . . . . . Machines Disabled . | . . . . . . . . . . . . . . Actions | -11 -10 -10 -8 -8 -6 -6 -6 -5 -5 -5 -5 -4 -4 --------- Run | Yrd Mat Sub Rec Scr Fac Low Dat Pro Fac Ext Cet Fac Arm Total 15042 | 168 1526 1361 1651 1230 1896 988 227 1328 996 1516 732 1055 368 Wait 1197 | . 146 18 3 1 97 250 8 24 238 215 90 102 5 Move 12570 | 131 1252 1276 1586 1215 1586 708 180 1228 695 1093 569 804 247 Hop . | . . . . . . . . . . . . . . Pick Up . | . . . . . . . . . . . . . . Fast Attach 100 | 8 10 6 3 5 31 . 6 3 6 5 . 7 10 Attach . | . . . . . . . . . . . . . . Detach 4 | . . . . . . . 1 . . 3 . . . Swap 35 | . . . 1 1 6 . 4 . 1 5 8 3 6 Drop 90 | . 10 6 4 6 20 . 7 2 4 6 8 8 9 Fire 671 | 29 94 37 48 1 124 15 11 31 40 79 31 74 57 Melee . | . . . . . . . . . . . . . . Ram 9 | . 2 . . 1 1 . . . . . . 5 . Kick . | . . . . . . . . . . . . . . Crush . | . . . . . . . . . . . . . . Escape Stasis 1 | . . . . . . . . . 1 . . . . Rewire 4 | . . . 4 . . . . . . . . . . Trap . | . . . . . . . . . . . . . . Miscellaneous 361 | . 12 18 2 . 31 15 10 40 11 110 26 52 34 Route ------- -11/Scrapyard -10/Materials (discovered 5 exits: [*Mat x3] / [*Min] / *Sub) -10/Subcaves (discovered 3 exits: [*Mat x2] / *Rec) -8/Recycling (discovered 2 exits: *Fac / *Scr) -8/Scraptown (discovered 2 exits: *Fac x2) -6/Factory (discovered 3 exits: *Fac / *Low x2) -6/Lower Caves (discovered 2 exits: [*Low] / *Dat) -6/Data Miner -5/Proximity Caves -5/Factory (discovered 4 exits: *Upp x2 / *Ext x2) -5/Extension (discovered 3 exits: *Fac x2 / *Cet) -5/Cetus (discovered 3 exits: *Fac x2 / [*Arc]) -4/Factory -4/Armory History --------- Turn | Location | Event 6 | -11/Scrapyard | Discovered new exit (range 16) 11 | -11/Scrapyard | Upgraded with Utility slot (x1) 11 | -11/Scrapyard | Upgraded with Weapon slot (x3) 195 | -11/Scrapyard | Entered Materials 216 | -10/Materials | Discovered new exit (range 14) 315 | -10/Materials | Build established: Gunner 744 | -10/Materials | Discovered new exit (range 12) 784 | -10/Materials | Reached level 2 1135 | -10/Materials | Discovered new exit (range 9) 1174 | -10/Materials | Reached level 3 1529 | -10/Materials | Discovered new exit (range 16) 1799 | -10/Materials | Discovered new exit (range 16) 1926 | -10/Materials | Entered Subcaves 1928 | -10/Subcaves | Reached level 4 1953 | -10/Subcaves | Core integrity fell below 50% 2271 | -10/Subcaves | Ambushed by Subdwellers from Twisted Machinery 2365 | -10/Subcaves | Build established: Tank 2878 | -10/Subcaves | Shifting Twisted Machinery released Sub. Power Source 3092 | -10/Subcaves | Shifting Twisted Machinery released Sub. Beam Cannon 3128 | -10/Subcaves | Shifting Twisted Machinery released Sub. Laser 3145 | -10/Subcaves | Discovered new exit (range 10) 3176 | -10/Subcaves | Visited Clippyterm 3180 | -10/Subcaves | Learned Research security intel 3180 | -10/Subcaves | Learned Research machine intel 3254 | -10/Subcaves | Disturbed a concealed Subdweller 3389 | -10/Subcaves | Discovered new exit (range 7) 3458 | -10/Subcaves | Reached level 5 3473 | -10/Subcaves | Discovered new exit (range 7) 3513 | -10/Subcaves | Entered Recycling 3588 | -8/Recycling | Reached level 6 3640 | -8/Recycling | Build established: Gunner 3780 | -8/Recycling | Discovered new exit (range 16) 4293 | -8/Recycling | Reached level 7 5590 | -8/Recycling | Scanned before Scraplab entrance 5609 | -8/Recycling | Entered Scraplab 5619 | -8/Recycling | Discovered new exit (range 4) 5624 | -8/Recycling | Entered Scraptown 5853 | -8/Scraptown | Discovered new exit (range 13) 5931 | -8/Scraptown | Scanned Subdweller tech in exchange for log data 5934 | -8/Scraptown | Learned location of Extension (-5) 5972 | -8/Scraptown | Visited Awakened 6026 | -8/Scraptown | Visited UFD Registry 6026 | -8/Scraptown | Registered with UFD as "Matrixtorch" 6041 | -8/Scraptown | Visited Cave Peace 6330 | -8/Scraptown | Visited Cyclists 6339 | -8/Scraptown | Entered Cyclist Reading Room 6372 | -8/Scraptown | Visited SPCMW 6411 | -8/Scraptown | Visited Fellowship of the Rings 6621 | -8/Scraptown | Visited Supply Room 6654 | -8/Scraptown | Visited The Evicted 6796 | -8/Scraptown | Visited Scrap Suit Storage 6837 | -8/Scraptown | Visited Abandonware Association 6851 | -8/Scraptown | Learned abandonware demo "KABOOM.EXE" 6879 | -8/Scraptown | Visited Junk Cannon Lab 6900 | -8/Scraptown | Upgraded with Weapon slot (x1) 6900 | -8/Scraptown | Found Prototype Special Weapon 6900 | -8/Scraptown | Identified Junk Cannon 6931 | -8/Scraptown | Visited Botcube Research 6987 | -8/Scraptown | Visited Analyses Database 7033 | -8/Scraptown | Visited Scrapoid Research Area 7074 | -8/Scraptown | Visited Scrapoid Pod Storage 7113 | -8/Scraptown | Visited A0-MCA Data Center 7121 | -8/Scraptown | Given a C rating by A0-MCA 7126 | -8/Scraptown | Attacked by Scraptown defenders 7173 | -8/Scraptown | Discovered new exit (range 5) 7178 | -8/Scraptown | System corruption cleaned by C-Scrubber 7179 | -8/Scraptown | Entered Factory 7180 | -6/Factory | Core integrity fell below 50% 7181 | -6/Factory | Reached level 8 7228 | -6/Factory | Reached level 9 7231 | -6/Factory | Upgraded with Propulsion slot (x1) 7231 | -6/Factory | Upgraded with Utility slot (x2) 7281 | -6/Factory | Garrison activated, responded to threat 7561 | -6/Factory | Build established: Hacker-Gunner 7584 | -6/Factory | Discovered new exit (range 16) 7595 | -6/Factory | Reached level 10 7928 | -6/Factory | Reached level 11 8093 | -6/Factory | Identified exit to Lower Caves 8706 | -6/Factory | Reached level 12 8911 | -6/Factory | Core integrity fell below 20% 8929 | -6/Factory | First assault squad dispatched 9053 | -6/Factory | Reached level 13 9531 | -6/Factory | Reached level 14 9630 | -6/Factory | Build established: Hacker-Tank 9658 | -6/Factory | Entered Lower Caves 9790 | -6/Lower Caves | Encountered a Warlord checkpoint 9800 | -6/Lower Caves | Learned Factory interactive machine intel 9861 | -6/Lower Caves | A Derelict revealed a hidden shortcut to meet someone special 9975 | -6/Lower Caves | Attracted the attention of an 0b10 outpost 9988 | -6/Lower Caves | Reached level 15 10052 | -6/Lower Caves | Discovered new exit (range 15) 10139 | -6/Lower Caves | Upgraded with Utility slot (x1) 10756 | -6/Lower Caves | Entered Data Miner 10756 | -6/Data Miner | Discovered new exit (range 6) 10777 | -6/Data Miner | Met Data Miner 10797 | -6/Data Miner | Learned location of Section 7 (-2) 10797 | -6/Data Miner | Acquired the access code to Warlord's prototype stash 10817 | -6/Data Miner | Received God Mode back door access code from Data Miner 10839 | -6/Data Miner | Reached level 16 10839 | -6/Data Miner | Interfaced with the Data Conduit 10927 | -6/Data Miner | Found Exp. Thermal Shield 11038 | -6/Data Miner | Entered Proximity Caves 11040 | -5/Proximity Caves | Reached level 17 11041 | -5/Proximity Caves | Spotter reported a threat 11041 | -5/Proximity Caves | Spotter reported a threat 11219 | -5/Proximity Caves | Build established: Scavenger-Tank 11365 | -5/Proximity Caves | Spotter reported a threat 11538 | -5/Proximity Caves | Attracted the attention of an 0b10 base 11584 | -5/Proximity Caves | Reached level 18 11643 | -5/Proximity Caves | Learned Research terminal intel 11643 | -5/Proximity Caves | Learned Extension stockpile data 11643 | -5/Proximity Caves | Identified exit to Factory 11643 | -5/Proximity Caves | Learned location of 2 exits from Lower Caves 11704 | -5/Proximity Caves | Found DCF Scrap (15 items) 11952 | -5/Proximity Caves | Reached level 19 12740 | -5/Proximity Caves | Upgraded with Utility slot (x1) 12746 | -5/Proximity Caves | Entered Factory 12747 | -5/Factory | Loaded intel: 257 machine locations 12748 | -5/Factory | Loaded intel: 56 interactive machine locations 12748 | -5/Factory | Reached level 20 12773 | -5/Factory | Identified exit to Upper Caves 12773 | -5/Factory | Identified exit to Extension 12912 | -5/Factory | Core integrity fell below 50% 13359 | -5/Factory | Crushed by falling debris 13507 | -5/Factory | Reached level 21 13507 | -5/Factory | Intercept squad dispatched 13531 | -5/Factory | Spotted Tracker 13538 | -5/Factory | Destroyed Tracker 13584 | -5/Factory | Spotted Combat Programmer 13610 | -5/Factory | Destroyed Combat Programmer 13946 | -5/Factory | First assault squad dispatched 14036 | -5/Factory | Entered Extension 14038 | -5/Extension | Loaded intel: 36 machine locations 14161 | -5/Extension | Disrupted transfer network 14285 | -5/Extension | Reached level 22 14479 | -5/Extension | Rescued A7 14618 | -5/Extension | Build established: Hacker-Tank 14647 | -5/Extension | Spotted B-75 Beast 14678 | -5/Extension | Destroyed B-75 Beast 14690 | -5/Extension | Spotted B-75 Beast 14707 | -5/Extension | Destroyed B-75 Beast 14731 | -5/Extension | Discovered new exit (range 4) 14857 | -5/Extension | Identified exit to Cetus 14864 | -5/Extension | Rescued a captive Derelict 14864 | -5/Extension | Rescued a captive Derelict 14897 | -5/Extension | Rescued a captive Derelict 15094 | -5/Extension | Rescued a captive Derelict 15167 | -5/Extension | Reached level 23 15206 | -5/Extension | Rescued a captive Derelict 15207 | -5/Extension | Rescued a captive Derelict 15247 | -5/Extension | Discovered new exit (range 10) 15502 | -5/Extension | Build established: Hacker-Gunner 15536 | -5/Extension | First assault squad dispatched 15857 | -5/Extension | Disrupted transfer network 15909 | -5/Extension | Destroyed 7 combat bots 15916 | -5/Extension | Lost 4 allies 15944 | -5/Extension | Entered Cetus 15944 | -5/Cetus | Accompanied by 1 ally (A7) 15945 | -5/Cetus | Loaded intel: 24 machine locations 15949 | -5/Cetus | Acquired a Cetus Manufacturing Module code from A7 15959 | -5/Cetus | Spotted Cetus Guard 15959 | -5/Cetus | Spotted Cetus Guard 15968 | -5/Cetus | Spotted Cetus Guard 15969 | -5/Cetus | Spotted Cetus Guard 15973 | -5/Cetus | Allies destroyed Cetus Guard 15985 | -5/Cetus | Extracted ID and sensor layout for unrecognized location from A7's data core 16007 | -5/Cetus | Destroyed Cetus Guard 16018 | -5/Cetus | Destroyed Cetus Guard 16025 | -5/Cetus | Destroyed Cetus Guard 16081 | -5/Cetus | Discovered new exit (range 15) 16149 | -5/Cetus | Started Cetus Manufacturing Module 16174 | -5/Cetus | Manufactured an Enhanced Grunt 16199 | -5/Cetus | Manufactured an Enhanced Grunt 16224 | -5/Cetus | Manufactured an Enhanced Grunt 16249 | -5/Cetus | Manufactured an Enhanced Grunt 16274 | -5/Cetus | Manufactured an Enhanced Grunt 16330 | -5/Cetus | Found a strange terminal 16349 | -5/Cetus | Discovered new exit (range 15) 16353 | -5/Cetus | Build established: Hacker-Tank 16381 | -5/Cetus | Spotted Cetus Guard 16382 | -5/Cetus | Spotted Cetus Guard 16385 | -5/Cetus | Destroyed Cetus Guard 16386 | -5/Cetus | Spotted Cetus Guard 16387 | -5/Cetus | Spotted Cetus Guard 16392 | -5/Cetus | Destroyed Cetus Guard 16398 | -5/Cetus | Allies destroyed Cetus Guard 16403 | -5/Cetus | Destroyed Cetus Guard 16424 | -5/Cetus | Lost 3 allies 16430 | -5/Cetus | Discovered new exit (range 15) 16437 | -5/Cetus | Met Revision 17 16437 | -5/Cetus | Murdered Revision 17 16694 | -5/Cetus | Security sweep announced 16721 | -5/Cetus | Reached level 24 16758 | -5/Cetus | Build established: Scavenger-Tank 16819 | -5/Cetus | Entered Factory 16819 | -4/Factory | Accompanied by 2 allies 16820 | -4/Factory | Loaded intel: 270 machine locations 16942 | -4/Factory | Reached level 25 17294 | -4/Factory | Reached level 26 17319 | -4/Factory | First assault squad dispatched 17329 | -4/Factory | Build established: Hacker-Tank 17483 | -4/Factory | High security lockdown imminent 17563 | -4/Factory | High security lockdown engaged 18019 | -4/Factory | Core integrity fell below 50% 18058 | -4/Factory | Core integrity fell below 20% 18172 | -4/Factory | Discovered new exit (range 5) 18206 | -4/Factory | Intercept squad dispatched 18213 | -4/Factory | Entered Armory 18214 | -4/Armory | Loaded intel: 87 machine locations 18215 | -4/Armory | Reached level 27 18463 | -4/Armory | First assault squad dispatched 18642 | -4/Armory | Destroyed 9 combat bots 18816 | -4/Armory | Destroyed 13 combat bots 18823 | -4/Armory | Destroyed by P-70 Sage with Tesla Rifle Last Messages --------------- 18795_ L-61 Swordsman destroyed. 18796_ Protomatter-24 decays. 18800_ HV Slug penetrates G-67 Veteran. 18803_ C-30 ARC bursts open, deploying its payload. 18803_ G-73 Enforcer unfolds itself. 18803_ G-67 Veteran unfolds itself. 18803_ M-36 Artificer unfolds itself. 18805_ Acquired Imp. Medium Armor Plating. 18807_ Acquired 7 matter. 18808_ J%ECL935OP>STEV497H, 18808_ I-47 Archangel distress signal jammed. 18815_ P-70 Sage knocked back. 18815_ HV Slug penetrates Wall. 18817_ P-70 Sage suffers critical hit (Burn). 18819_ G-73 Enforcer knocked back. 18819_ HV Slug penetrates G-73 Enforcer. 18819_ HV Slug penetrates P-70 Sage. [Achievement: 20k Club] [Achievement: 30k Club] [Achievement: 40k Club] Map ----- +----------------------------------------------------+ | ?????????????????????????????????????????????????? | | ?????????????????????????????????????????????????? | | ?????????????????????????????????????????????????? | | ?????????????????????????????????????????????????? | | ?????????????????????????????????????????????????? | | ?????????????????????????????????????????????????? | | ?????????????????????????????????????????????????? | | ?????????????????????????????????????????????????? | | ?????????????????????????????????????????????????? | | ?????????????????????????????????????????????????? | | ??????????? ???????????????????????????????????? | | ??????????]]] ???????????????????????????????????? | | ??????????]]] # ????????????#######?????????????? | | ??????"????]] + ????????????# ?????????????? | | ??????# ??? # ???????????? ?????????????? | | ???????#"#+##""# ????????????# ###??##???????? | | ????????#" "%"????????????# # ?? ???????? | | ??????#### "%"????????????# # ?? ???????? | | ????"##""" " ###?####????# # ? ???????? | | ???? % %? ?????? +?? ???????? | | ???# ""!""##"#???????# #??? ???????? | | ??? " "%%% #????????# #???? ######## | | ???? "%"]%%!=%% #????????# #???#+#" ##" # | | ????????####"%"]== =%###??????# #####!#% % | | ????????# %g%gg%#=######;; %%;;#!%=#!" %[ # | | ????????#### ;%=*%=gg p=@ % % %%%^%%%%" = = | | ???????????####!%! [*#;%############"##[#% !% | | ??????????????########????????????# ######%"" | | ?????????????????????????????????# #?????# | | ????????????????????????????????# #??????## | | ????????????????????????????????##????????#### ## | | ?????????????????????????????????????????????####? | | ?????????????????????????????????????????????????? | | ?????????????????????????????????????????????????? | | ?????????????????????????????????????????????????? | | ?????????????????????????????????????????????????? | | ?????????????????????????????????????????????????? | | ?????????????????????????????????????????????????? | | ?????????????????????????????????????????????????? | | ?????????????????????????????????????????????????? | | ?????????????????????????????????????????????????? | | | | | | | | | | | | | | | | | | | +----------------------------------------------------+ Best States ------------- Heat Dissipation 79 Energy Generation 45 Energy Capacity 650 Matter Stores 300 Matter Capacity 300 Sight Range 16 Robot Scan Range 4 Terrain Scan Range 16 Terrain Scan Density 10 ECM Strength 2 Jamming Range 16 Additional Mass Support 9 Armor Coverage 675 Resistance: KI 30 Resistance: TH 30 Propulsion Shielding 33 Weapon Cycling 20 Evasion (%) 53 Target Analysis 8 Particle Charging 25 Kinecelleration 40 Offensive Hacking 35 Defensive Hacking 20 Item Schematics ----------------- Combat Drone Bay | -6/Data Miner | Free Lgt. Regenerative Plating | -6/Data Miner | Free Enh. Flexi-carbon Leg | -6/Data Miner | Free Exp. Heat Sink | -6/Data Miner | Free Kinetic Spear | -6/Data Miner | Free Impulse Thruster | -6/Data Miner | Free Hvy. Disruptor Cannon | -6/Data Miner | Free Imp. Remote Shield | -6/Data Miner | Free Mni. Drone Bay | -6/Data Miner | Free Graphene Brace | -6/Data Miner | Free Robot Schematics ------------------ M-22 Extractor | -6/Data Miner | Free R-10 Processor | -6/Data Miner | Free Y-54 Guardian | -6/Data Miner | Free B-60 Warrior | -6/Data Miner | Free O-32 Director | -6/Data Miner | Free G-50 Soldier | -6/Data Miner | Free M-36 Artificer | -6/Data Miner | Free B-48 Gladiator | -5/Extension | Hacked Fabricated ------------ Nothing Repaired ---------- Nothing Alien Tech Used ----------------- None Achievements -------------- 20k Club 30k Club 40k Club Armchair Analyst Collateral Damage I'm Back, Baby! It Was An Accident, I Swear Prison Break Project G-00 Respectable Loadout Revising The Future Slippery One The Oracle Unlikely Earthworm Unlimited Data Challenges ------------ None RPGLIKE | -11 -10 -10 -8 -8 -6 -6 -6 -5 -5 -5 -5 -4 -4 --------- Run | Yrd Mat Sub Rec Scr Fac Low Dat Pro Fac Ext Cet Fac Arm Levels Raised 26 | . 2 2 2 . 7 1 1 3 2 2 1 2 1 XP Earned 42950 | 3000 4325 1819 3025 650 10487 1200 2150 3400 3671 3178 772 4222 1051 XP Spent 41830 | 2900 2850 1400 . 4760 10560 1525 1300 4285 1800 4500 800 3575 1575 Upgrades 97 | 4 7 4 . 19 34 3 2 7 2 4 1 5 5 Propulsion Slot 1 | . . . . . 1 . . . . . . . . Utility Slot 5 | 1 . . . . 2 1 . 1 . . . . . Weapon Slot 4 | 3 . . . 1 . . . . . . . . . Core Integrity 32 | . . . . 14 12 . . 1 . . . . 5 Heat Dissipation 9 | . . . . . 7 . . 2 . . . . . Energy Generation 4 | . . . . 1 2 . . . . . . 1 . Energy Storage 6 | . . . . . 4 . . . . . . 2 . Mass Support 3 | . . . . 3 . . . . . . . . . Sensor Range 2 | . . . . . . 2 . . . . . . . Ranged Accuracy 5 | . 4 . . . 1 . . . . . . . . Hack Attack % 7 | . . . . . 2 . . 1 2 2 . . . Hack Defense % 4 | . . . . . 2 . . . . . . 2 . KI Resistance % 4 | . 2 . . . . . . 2 . . . . . TH Resistance % 4 | . 1 . . . 1 . 2 . . . . . . KI Damage % 4 | . . 2 . . . . . . . 2 . . . TH Damage % 3 | . . 2 . . . . . . . . 1 . . Protomatter Created 2929 | . 108 146 17 . 386 129 218 285 123 539 162 455 361 Integrity Restored 7865 | . 212 375 36 . 681 345 228 921 237 2391 580 1091 768 Core 6791 | . 158 375 36 . 681 345 228 921 237 1659 580 803 768 Parts 1074 | . 54 . . . . . . . . 732 . 288 . Protomatter Decayed 598 | . 13 79 5 . 69 14 142 23 44 26 46 113 24 Game ------ Seed HypercooledOmegaFlamer Manual? 0 Play Time 04:29:19 Cumulative 12.2 hours Start 2025.05.22 @ 15:14:00 End 2025.05.23 @ 16:12:13 Sessions 5 Manual Loads 0 Difficulty Rogue Special Mode Winter2019/RPGLIKE Game No. 6 Rogue 6 Adventurer 0 Explorer 0 Win Type - Total 0 Types 0/0/0/0/0/0/0/0/0/0 Lore% 20 Gallery% 11 Achievement% 20 Wizard Run 0 Options --------- Layout 0 ASCII 0 Keyboard 0 Movement Numpad Keybinds 0 Fullscreen 2 Font 14/SmallcapsGlow Map View 36x27 Zoom Use 64% Tactical HUD 1 Map Filters NONE Filters NONE Steam 0 RUN: 104ee4fd-2046-47a8-8a6b-ba372f079c69